Cogmind - Beta 13 @@@ ROGUE MODE // 2024.06.21 @ 23:18:38 Player: doughoff Result: Self-destructed Performance ------------- Evolutions (2) 1000 Regions Visited (3) 600 Robots Destroyed (21) 105 Value Destroyed (264) 264 Prototype IDs (2) 40 Alien Tech Used (0) 0 Bonus (0) 0 TOTAL SCORE: 2009 Bonus ------- None Cogmind --------- Core Integrity 535/550 Matter 300/300 Energy 100/100 System Corruption 0% Temperature Cool (0) Movement Rolling (95) Ox1 Location -8/Materials Parts ------- > --- POWER (1) -------- (None) > --- PROPULSION (4) --- Wheel > --- UTILITY (4) ------ Medium Storage Unit > --- WEAPON (2) ------- Light Assault Rifle > --- INVENTORY (10) --- Light Ion Engine Light Armor Plating Light Armor Plating Light Armor Plating Beam Cannon Light Assault Rifle Light Assault Rifle Mining Laser Scrap Shield Fragment (48) Peak State ------------ > --- POWER ------------ Light Ion Engine > --- PROPULSION ------- Light Treads Wheel > --- UTILITY ---------- Medium Storage Unit Light Armor Plating > --- WEAPON ----------- Assault Rifle Light Assault Rifle > --- INVENTORY -------- Light Ion Engine Light Armor Plating Light Armor Plating Light Armor Plating Beam Cannon Light Assault Rifle Light Assault Rifle Mining Laser Scrap Shield Fragment [Rating: 8] Favorites ----------- Power Light Ion Engine Engine Light Ion Engine Propulsion Light Treads Treads Light Treads Wheel Wheel Utility Small Storage Unit Storage Small Storage Unit Protection Weapon Shielding Weapon Assault Rifle Energy Gun Medium Laser Ballistic Gun Assault Rifle Special Weapon Mining Laser Build | -11 -10 -10 -8 ------- Run | Yrd Mat Sub Mat Slots Evolved 4 | . . . 4 Power . | . . . . Propulsion 2 | . . . 2 Utility 2 | . . . 2 Weapon . | . . . . Parts Attached 13 | 6 6 1 . Power 1 | 1 . . . Engine 1 | 1 . . . Core . | . . . . Reactor . | . . . . Propulsion 3 | 2 . 1 . Treads 2 | 2 . . . Leg . | . . . . Wheel 1 | . . 1 . Hover . | . . . . Flight . | . . . . Utility 5 | 1 4 . . Device . | . . . . Storage 2 | 1 1 . . Processor . | . . . . Hackware . | . . . . Protection 3 | . 3 . . Artifact . | . . . . Weapon 4 | 2 2 . . Energy Gun 1 | 1 . . . Energy Cannon . | . . . . Ballistic Gun 2 | 1 1 . . Ballistic Cannon . | . . . . Launcher . | . . . . Special Weapon 1 | . 1 . . Impact Weapon . | . . . . Slashing Weapon . | . . . . Piercing Weapon . | . . . . Special Melee Weapon . | . . . . Unidentified Prototypes . | . . . . Parts Lost 5 | . . 4 1 Power 1 | . . 1 . Propulsion 2 | . . 1 1 Utility 1 | . . 1 . Weapon 1 | . . 1 . Highest Loss Streak 3 | . . 3 1 To Critical Strikes . | . . . . Average Slot Usage (%) 97 | . 99 89 36 Engine 13 | . 14 10 . Treads 26 | . 28 19 9 Wheel 1 | . . 5 9 Storage 13 | . 14 14 9 Protection 13 | . 13 12 . Energy Gun 4 | . 5 . . Ballistic Gun 18 | . 16 26 9 Special Weapon 4 | . 5 . . Naked Turns . | . . . . Heaviest Build 19 | 12 19 19 11 Greatest Support 40 | 40 40 40 10 Greatest Overweight (x) 1 | . . 1 1 Average Overweight (x) . | . . . 1 Largest Inventory Capacity 10 | 8 10 10 10 Average Capacity 8 | 6 8 10 10 Most Carried 10 | 4 9 10 9 Average Carried 7 | 2 7 9 9 Final Capacity 10 | 8 10 10 10 Final Carried 9 | 4 9 9 9 Class Distribution -------------------- 100% | Mutant Dominant Class ---------------- Mutant | -10/Materials Mutant | -10/Subcaves Mutant | -8/Materials Resources | -11 -10 -10 -8 ----------- Run | Yrd Mat Sub Mat Matter Collected 482 | 257 129 96 . Remotely . | . . . . Salvage Created 383 | . 181 202 . Parts 38 | . 17 21 . Haulers Intercepted . | . . . . Recyclers Shooed . | . . . . Parts Field Recycled . | . . . . Retrieved Matter . | . . . . Parts Self-Destructed 24 | . . 24 . Prevented . | . . . . Kills | -11 -10 -10 -8 ------- Run | Yrd Mat Sub Mat Combat Hostiles Destroyed 21 | . 10 11 . Guns 21 | . 10 11 . Classes Destroyed 3 | . 2 1 . Swarmer 19 | . 9 10 . Grunt 1 | . 1 . . Subdweller 1 | . . 1 . Best Kill Streak 4 | . 3 4 . Combat Bots Only 4 | . 3 4 . Max Kills in Single Turn 2 | . 2 1 . Gunslinging 1 | . 1 . . Exploded . | . . . . Melee . | . . . . Uniques/NPCs Destroyed . | . . . . Combat | -11 -10 -10 -8 -------- Run | Yrd Mat Sub Mat Hostile Shots Fired 161 | . 70 87 4 Missed 42 | . 17 25 . Damage Taken 968 | . 440 473 55 Core 202 | . 76 111 15 Absorbed by Shields . | . . . . Redirected to Shielding 41 | . 41 . . Core Remaining (%) 62 | 100 . 25 . Volleys Fired 61 | . 35 24 2 Largest 2 | . 2 2 1 Hottest 100 | . 100 40 20 Shots Fired 115 | . 66 47 2 Gun 111 | . 62 47 2 Cannon . | . . . . Launcher . | . . . . Special 4 | . 4 . . Kinetic 82 | . 33 47 2 Thermal 33 | . 33 . . Explosive . | . . . . Electromagnetic . | . . . . Robot Hit Streak 8 | . 8 5 1 Robot Miss Streak 8 | . 8 4 1 Penetration Max . | . . . . Secondary Targets 3 | . 2 1 . Max Gunslinging Chain 1 | . 1 1 . Shots Hit Robots 58 | . 34 23 1 Core Hits 25 | . 12 13 . Critical Kills . | . . . . Critical Parts Destroyed . | . . . . Critical Strikes 1 | . 1 . . Burn 1 | . 1 . . Melee Attacks . | . . . . Impact . | . . . . Slashing . | . . . . Piercing . | . . . . Sneak Attacks . | . . . . Combat Hostiles . | . . . . Follow-up Attacks . | . . . . Damage Inflicted 708 | . 459 240 9 Guns 654 | . 405 240 9 Cannons . | . . . . Explosions . | . . . . Melee . | . . . . Ramming 30 | . 30 . . Kinetic 445 | . 196 240 9 Thermal 233 | . 233 . . Explosive . | . . . . Electromagnetic . | . . . . Impact . | . . . . Slashing . | . . . . Piercing . | . . . . Highest Corruption . | . . . . Average Corruption . | . . . . Corruption Purged . | . . . . Corruption Blocked . | . . . . Overload Shots . | . . . . Overflow Damage . | . . . . Projectiles . | . . . . Explosions . | . . . . Melee . | . . . . Knockbacks . | . . . . Impact . | . . . . Kinetic . | . . . . Secondary . | . . . . Self-Inflicted Damage . | . . . . Shots . | . . . . Rammed 8 | . 8 . . Targets Rammed 8 | . 8 . . Kicked . | . . . . Crushed . | . . . . Highest Temperature 54 | . 54 5 . Average Temperature 19 | . 20 5 . Received Heat Transfer 210 | . 12 162 36 Siege Activations . | . . . . Robots Corrupted . | . . . . Combat Hostiles . | . . . . Parts Fried . | . . . . Impact Corruptions . | . . . . Robots Melted . | . . . . Combat Hostiles . | . . . . Parts Melted 1 | . 1 . . Heat Transferred 753 | . 753 . . Parts Sabotaged . | . . . . Parts Stolen . | . . . . Parts Stripped . | . . . . Power Chain Reactions . | . . . . Alert | -11 -10 -10 -8 ------- Run | Yrd Mat Sub Mat Peak Influence 346 | . 291 . 346 Initial 331 | . . . 331 Average 100 | . 101 . 334 Maximum Alert Level 1 | . 1 . 1 Low Security (%) 86 | 100 87 . . Level 1 13 | . 12 . 100 Level 2 . | . . . . Level 3 . | . . . . Level 4 . | . . . . Level 5 . | . . . . High Security . | . . . . Max Security . | . . . . Squads Dispatched 3 | . 2 . 1 Investigation . | . . . . Extermination . | . . . . Reinforcement 3 | . 2 . 1 Assault . | . . . . Garrison . | . . . . Intercept . | . . . . Searches Triggered . | . . . . Construction Impeded . | . . . . Haulers Reinforced . | . . . . Active Scanning Responses . | . . . . Cargo Convoy Interrupts . | . . . . Stealth | -11 -10 -10 -8 --------- Run | Yrd Mat Sub Mat Distress Signals 5 | . 5 . . Communications Jammed . | . . . . Distress Signals . | . . . . Times Spotted 57 | . 22 33 2 Peak Tracking Total 4 | . 4 4 1 Tactical Retreats 4 | . 2 2 . Traps | -11 -10 -10 -8 ------- Run | Yrd Mat Sub Mat Traps Triggered . | . . . . Indirectly . | . . . . Trap Hack Attempts . | . . . . Triggered . | . . . . Disarmed . | . . . . Reprogrammed . | . . . . Reused . | . . . . Traps Extracted . | . . . . Installed . | . . . . Triggered . | . . . . Machines | -11 -10 -10 -8 ---------- Run | Yrd Mat Sub Mat Machines Disabled 1 | . . 1 . Max in Single Turn 1 | . . 1 . Machines Repaired . | . . . . Machines Dismantled . | . . . . Machines Sabotaged . | . . . . Overloaded Fab Kills . | . . . . Hacking | -11 -10 -10 -8 --------- Run | Yrd Mat Sub Mat Machines Accessed 5 | . 5 . . Terminals 5 | . 5 . . Fabricators . | . . . . Repair Stations . | . . . . Recycling Units . | . . . . Scanalyzers . | . . . . Garrison Access . | . . . . Total Hacks 16 | . 16 . . Successful 9 | . 9 . . Failed 6 | . 6 . . Catastrophic . | . . . . Database Lockouts 1 | . 1 . . Manual 12 | . 12 . . Terminals 16 | . 16 . . Fabricators . | . . . . Repair Stations . | . . . . Recycling Units . | . . . . Scanalyzers . | . . . . Garrison Access . | . . . . Terminal Hacks 5 | . 5 . . Robot Analysis 1 | . 1 . . Prototype ID Bank 1 | . 1 . . Locate Traps 1 | . 1 . . Hauler Manifests 1 | . 1 . . Registered Components 1 | . 1 . . Fabricator Hacks . | . . . . Repair Station Hacks . | . . . . Recycling Unit Hacks . | . . . . Scanalyzer . | . . . . Garrison Access Hacks . | . . . . Unauthorized Hacks 4 | . 4 . . Terminals 4 | . 4 . . Botnet 4 | . 4 . . Fabricators . | . . . . Repair Stations . | . . . . Recycling Units . | . . . . Scanalyzers . | . . . . Garrison Access . | . . . . Data Cores Recovered . | . . . . Used . | . . . . Hacking Detections 3 | . 3 . . Full Trace Events . | . . . . Feedback Events . | . . . . Feedback Blocked . | . . . . Robot Schematics Acquired . | . . . . Robots Built . | . . . . Authchips . | . . . . Time . | . . . . Total Robot Build Rating . | . . . . Part Schematics Acquired . | . . . . Parts Built . | . . . . Authchips . | . . . . Time . | . . . . Total Part Build Rating . | . . . . Parts Repaired . | . . . . Time . | . . . . Parts Recycled . | . . . . Recycled Matter . | . . . . Retrieved Matter . | . . . . Retrieved Components . | . . . . Parts Scanalyzed . | . . . . Part Schematics Acquired . | . . . . Parts Damaged . | . . . . Bothacking | -11 -10 -10 -8 ------------ Run | Yrd Mat Sub Mat Used RIF Installer . | . . . . Robots Hacked . | . . . . Non-combat . | . . . . Combat . | . . . . Robot Hacks Applied . | . . . . Relay Couplers Released . | . . . . Fabnet Peak Effective % . | . . . . Robots Rewired . | . . . . Allies Hacked . | . . . . Hacks Repelled . | . . . . Allies | -11 -10 -10 -8 -------- Run | Yrd Mat Sub Mat Total Allies . | . . . . Largest Group . | . . . . Highest-Rated Group . | . . . . Highest-Rated Ally . | . . . . Total Orders . | . . . . Ally Attacks . | . . . . Total Damage . | . . . . Kills . | . . . . Allies Corrupted . | . . . . Allies Melted . | . . . . Intel | -11 -10 -10 -8 ------- Run | Yrd Mat Sub Mat Robot Analysis Total 1 | . 1 . . Derelict Logs Recovered 1 | . . 1 . Drone Launches . | . . . . Drone Recoveries . | . . . . Exploration | -11 -10 -10 -8 ------------- Run | Yrd Mat Sub Mat Turns Passed 1498 | 70 1178 223 27 Spaces Moved 808 | 39 625 120 24 Core 4 | 4 . . . Treads 715 | 35 625 55 . Legs . | . . . . Wheels 89 | . . 65 24 Hover . | . . . . Flight . | . . . . Fastest Speed 50 | 50 160 95 95 Average Speed 152 | 148 160 124 95 Slowest Speed 160 | 160 160 160 95 Overloaded Moves . | . . . . Propulsion Burnouts . | . . . . Robots Hopped . | . . . . Cave-ins Triggered . | . . . . Exploration Rate (%) 28 | 4 96 10 5 Regions Visited 3 Branch Regions 1 Pre-discovered Areas . | . . . . Known Exits Taken . | . . . . Unknown Exits Taken 3 | 1 1 1 . Scrap Searched . | . . . . Spaces Dug 2 | . 2 . . Terrain Destroyed 2 | . 2 . . Melee . | . . . . Projectile 2 | . 2 . . AOE . | . . . . Terrain Rammed . | . . . . Walls Destroyed . | . . . . Machines Disabled . | . . . . Actions | -11 -10 -10 -8 --------- Run | Yrd Mat Sub Mat Total 950 | 48 726 150 26 Wait 42 | . 37 5 . Move 805 | 38 624 119 24 Hop . | . . . . Pick Up 14 | 4 9 1 . Fast Attach 8 | 6 2 . . Attach 1 | . . 1 . Detach . | . . . . Swap 4 | . 4 . . Drop 7 | . 7 . . Fire 61 | . 35 24 2 Melee . | . . . . Ram . | . . . . Kick . | . . . . Crush 8 | . 8 . . Escape Stasis . | . . . . Rewire . | . . . . Trap . | . . . . Miscellaneous . | . . . . Route ------- -11/Scrapyard -10/Materials (discovered 6 exits: [*Mat x3] / [*Min x2] / [*Sub]) -10/Subcaves (discovered 3 exits: [*Mat x2] / *Rec) -8/Materials History --------- Turn | Location | Event 5 | -11/Scrapyard | Discovered new exit (range 15) 71 | -11/Scrapyard | Entered Materials 184 | -10/Materials | Discovered new exit (range 6) 315 | -10/Materials | Build established: Mutant 451 | -10/Materials | Discovered new exit (range 14) 721 | -10/Materials | Discovered new exit (range 10) 741 | -10/Materials | Central database locked down 900 | -10/Materials | Discovered new exit (range 3) 1015 | -10/Materials | Discovered new exit (range 11) 1186 | -10/Materials | Discovered new exit (range 10) 1249 | -10/Materials | Entered Subcaves 1272 | -10/Subcaves | Discovered new exit (range 10) 1344 | -10/Subcaves | Discovered new exit (range 15) 1398 | -10/Subcaves | Identified exit to Recycling 1427 | -10/Subcaves | Core integrity fell below 50% 1472 | -10/Subcaves | Entered Materials 1472 | -8/Materials | Evolved 4 slots: Propulsion x2, Utility x2 1475 | -8/Materials | Lost 3 parts (1p1u1w) 1499 | -8/Materials | Self-destructed Last Messages --------------- 01428_ Lgt. Ion Engine destroyed. 01430_ S-10 Pest destroyed. 01432_ Subatomizers dissect the Flight Unit. 01433_ Lgt. Assault Rifle fries itself beyond repair. 01433_ S-10 Pest destroyed. 01436_ Lgt. Ion Engine fries itself beyond repair. 01436_ Acquired 15 matter. 01440_ Flight Unit fries itself beyond repair. 01440_ Lgt. Assault Rifle fries itself beyond repair. 01440_ Lgt. Armor Plating destroyed. 01444_ Machine disabled. 01444_ Assault Rifle destroyed. 01449_ Acquired 4 matter. PARAMETERS=PROPULSION+2,UTILITY+2 LOCATION=UNKNOWN GOAL=ESCAPE 01473_ O-16 Technician: "IFF HANDSHAKE FAILED. SECURING TERMINAL." 01484_ ALERT: Hostiles spotted, dispatching reinforcements to Terminal M011. 01498_ Critical hit (Burn: +37). 01498_ Lgt. Treads destroyed. Map ----- +----------------------------------------------------+ | ?????????????????????????????????????????????????? | | ???????????????????????????? ??????????????????? | | ???????????????????????????? #?????????????????? | | ???????????????????????????? #?????????????????? | | ???????????????????????????? #?????????????????? | | ???????????????????????????# #?????????????????? | | ???????????????????????????# #?????????????????? | | ???????????????????????????# #?????????????????? | | ???????????????????????????# +?????????????????? | | ???????????????????????????# #?????????????????? | | ???????????????????????????# #?????????????????? | | ???????????????????????????# #?????????????????? | | ????????????#??????????????# #?????????????????? | | ????????????# ?????????????# #?????????????????? | | ???????????## #????????????# #?????????????????? | | ???????????# ############# #?????????????????? | | ???????????# #?????????????????? | | ???????????# ####### #?????????????????? | | ???????????### #?????# #?????????????????? | | ?????????????# #?????#####?????????????????? | | ?????????????# #???????????????????????????? | | ?????????????# #???????????????????????????? | | ?????????????# #???????????????????????????? | | ?????????????# #???????????????????????????? | | ?????????????# ############ ????????? | | ?????????????# @ Y a ????????? | | ?????????????#######+##+######### a????????? | | ?????????????????# #????????????????????????? | | ?????????????????# "" #????????????????????????? | | ?????????????????# "T #????????????????????????? | | ?????????????????# "" #????????????????????????? | | ?????????????????# #????????????????????????? | | ?????????????????# #????????????????????????? | | ?????????????????########????????????????????????? | | | | | | | | | | | | | | | | | | | | | | | | | | | | | | | | | +----------------------------------------------------+ Best States ------------- Heat Dissipation 31 Energy Generation 10 Energy Capacity 125 Matter Stores 300 Matter Capacity 300 Sight Range 16 Terrain Scan Density 10 Armor Coverage 150 Weapon Shielding 33 Evasion (%) 41 Recoil Reduction 2 Item Schematics ----------------- None Robot Schematics ------------------ None Fabricated ------------ Nothing Alien Tech Used ----------------- None Achievements -------------- None Challenges ------------ None Game ------ Seed ExplosiveReactiveDerivative Manual? 0 Play Time 00:10:17 Cumulative 42.7 hours Start 2024.06.21 @ 21:51:04 End 2024.06.21 @ 23:18:38 Sessions 3 Manual Loads 0 Difficulty Rogue Special Mode None Game No. 48 Rogue 41 Adventurer 7 Explorer 0 Win Type - Total 1 Types 1/0/0/0/0/0/0/0/0 Lore% 14 Gallery% 32 Achievement% 33 Wizard Run 0 Options --------- Layout 0 ASCII 0 Keyboard 0 Movement Numpad Keybinds 0 Fullscreen 2 Font 24/Smallcaps Map View 113x50 Zoom Use 0% Tactical HUD 1 Map Filters NONE Filters NONE Steam 1 RUN: a12d1776-bebe-4adb-a931-7d4786ac7200